bitfinex-derivatives/quotes_BTCF0:USTF0_20250207
["timestamp","ask_amount","ask_price","bid_price","bid_amount"]
[1738896697114,0.3608,97690.0,97670.0,0.2047595]
[1738896697115,0.204742,97679.0,97673.0,0.04916]
[1738896697822,1.235542,97679.0,97673.0,0.04916]
[1738896698215,0.565542,97679.0,97673.0,0.04916]
[1738896698920,0.565542,97679.0,97670.0,0.12107645]
[1738896699229,0.565542,97679.0,97664.0,0.18405738]
[1738896699415,0.566542,97679.0,97664.0,0.18405738]
[1738896699622,0.566542,97679.0,97669.0,0.12107645]
[1738896699919,0.566542,97679.0,97664.0,0.18405738]
[1738896700123,0.57668743,97679.0,97664.0,0.18405738]
[1738896700319,0.57668743,97679.0,97678.0,1e-08]
[1738896700525,0.57668743,97679.0,97664.0,0.18405738]
[1738896700526,0.2047713,97665.0,97664.0,0.18405738]
[1738896700729,0.5655713,97665.0,97664.0,0.18405738]
[1738896701737,0.5455713,97665.0,97664.0,0.18505738]
[1738896701927,0.5455713,97665.0,97664.0,0.001]
[1738896702226,0.5455713,97665.0,97664.0,0.003]
[1738896703117,0.5465713,97665.0,97664.0,0.002]
[1738896703926,0.1857713,97665.0,97655.0,0.00015355]
[1738896704121,0.001,97665.0,97655.0,0.00015355]
[1738896704324,0.001,97665.0,97664.0,0.2047734]
[1738896704524,0.001,97665.0,97664.0,0.2057734]
[1738896704722,0.00015302,97674.0,97669.0,0.2047616]
[1738896704924,0.00015302,97674.0,97670.0,0.0422]
[1738896705222,0.1526065,97671.0,97670.0,0.0422]
[1738896707215,0.3573653,97671.0,97664.0,0.12107645]
[1738896707416,0.2047631,97669.0,97664.0,0.12107645]
[1738896708119,0.51392651,97671.0,97664.0,0.12107645]
[1738896708320,0.5134065,97671.0,97664.0,0.12107645]
[1738896708529,0.5134065,97671.0,97664.0,0.12207645]
[1738896709624,0.3608,97671.0,97664.0,0.12207645]
[1738896709831,0.3608,97671.0,97664.0,0.12107645]
[1738896710031,0.3608,97671.0,97664.0,0.12307645]
[1738896710630,0.3608,97671.0,97664.0,0.12207645]
[1738896711235,0.2047683,97667.0,97664.0,0.12307645]
[1738896711527,0.2047713,97665.0,97664.0,0.002]
[1738896711721,0.2047713,97665.0,97664.0,0.003]
[1738896712626,0.2047713,97665.0,97664.0,0.002]
[1738896714325,0.2047713,97665.0,97657.0,0.043]
[1738896714526,0.3608,97662.0,97657.0,0.043]
[1738896715033,0.3608,97662.0,97655.0,0.00015355]
[1738896715034,0.2047902,97656.0,97655.0,0.00015355]
[1738896716439,0.5655902,97656.0,97655.0,0.00015355]
[1738896717033,0.5655902,97656.0,97655.0,0.00115355]
[1738896720340,0.2048196,97642.0,97625.0,0.0865]
[1738896720532,0.2048384,97633.0,97625.0,0.0418]
[1738896720733,0.5656384,97633.0,97631.0,0.18341658]
[1738896723044,0.8656384,97633.0,97631.0,0.16557981]
[1738896723250,0.67076544,97633.0,97622.0,0.00015363]
[1738896723447,0.5656594,97623.0,97621.0,0.28009447]
[1738896723634,0.3608,97623.0,97615.0,0.36057112]
[1738896723945,0.2048972,97605.0,97604.0,0.00153653]
[1738896726143,0.2049161,97596.0,97595.0,0.04265363]
[1738896727351,0.2049161,97596.0,97595.0,0.04765363]
[1738896727734,0.2049161,97596.0,97595.0,0.04965363]
[1738896728649,0.3608,97597.0,97595.0,0.04965363]
[1738896732647,0.3608,97608.0,97595.0,0.04965363]
[1738896732857,0.3608,97618.0,97603.0,0.2048993]
[1738896733146,0.1833232,97638.0,97613.0,0.3608]
[1738896733351,0.1833232,97638.0,97629.0,0.5656448]
[1738896733554,0.3881531,97638.0,97629.0,0.3608]
[1738896733850,0.38867311,97638.0,97629.0,0.3608]
[1738896734057,0.3608,97634.0,97617.0,0.04916]
[1738896734265,0.12107645,97630.0,97620.0,0.00015363]
[1738896734447,0.2048636,97621.0,97620.0,0.00015363]
[1738896736848,0.2048636,97621.0,97620.0,0.00115363]
[1738896737141,0.2048636,97621.0,97620.0,0.00215363]
[1738896737345,0.2048636,97621.0,97620.0,0.00315363]
[1738896737945,0.2048636,97621.0,97620.0,0.00215363]
[1738896738154,0.0432,97625.0,97620.0,0.00215363]
[1738896739147,0.0432,97625.0,97620.0,0.00015363]
[1738896739748,0.0432,97625.0,97620.0,0.00515363]
[1738896740271,0.204862,97622.0,97620.0,0.00515363]
[1738896740653,0.204862,97622.0,97620.0,0.00915363]
[1738896741058,0.204862,97622.0,97620.0,0.01015363]
[1738896741751,0.205862,97622.0,97620.0,0.00915363]
[1738896742147,0.205862,97622.0,97620.0,0.00415363]
[1738896742758,0.205862,97622.0,97620.0,0.00015363]
[1738896744861,0.204862,97622.0,97620.0,0.00015363]
[1738896745564,0.204862,97622.0,97620.0,0.00215363]
[1738896746662,0.204862,97622.0,97620.0,0.00015363]
[1738896747749,0.0432,97625.0,97620.0,0.00015363]
[1738896748157,0.001,97622.0,97620.0,0.00015363]
[1738896748762,0.0432,97625.0,97620.0,0.00015363]
[1738896748957,0.0442,97625.0,97620.0,0.00015363]
[1738896749364,0.2048586,97624.0,97620.0,0.00015363]
[1738896750369,0.2048628,97622.0,97620.0,0.00015363]
[1738896750570,0.2048628,97622.0,97620.0,0.00815363]
[1738896750571,0.2058628,97622.0,97620.0,0.00815363]
[1738896751270,0.2048628,97622.0,97620.0,0.00815363]
[1738896751865,0.3608,97621.0,97592.0,0.13816]
[1738896752055,0.204909,97600.0,97592.0,0.13816]
[1738896752460,0.2049149,97597.0,97592.0,0.09266]
[1738896752773,0.2049149,97597.0,97592.0,0.0435]
[1738896753259,0.2049149,97597.0,97592.0,0.0505]
[1738896753571,0.2049149,97597.0,97592.0,0.007]
[1738896753758,0.3608,97598.0,97592.0,0.007]
[1738896753955,0.2049203,97594.0,97592.0,0.007]
[1738896754360,0.2049203,97594.0,97592.0,0.009]
[1738896754766,0.2049203,97594.0,97592.0,0.008]
[1738896755261,0.042,97593.0,97592.0,0.002]
[1738896755463,0.042,97593.0,97592.0,0.008]
[1738896756368,0.00015363,97604.0,97601.0,0.2049054]
[1738896756567,0.00015363,97604.0,97594.0,0.12107645]
[1738896757968,0.2049085,97600.0,97592.0,0.364]
[1738896758169,0.2049122,97598.0,97594.0,0.002]
[1738896758364,0.18388965,97597.0,97594.0,0.002]
[1738896758669,0.22708965,97597.0,97594.0,0.008]
[1738896759068,0.0416,97596.0,97594.0,0.008]
[1738896759472,0.2049182,97595.0,97594.0,0.008]
[1738896759868,0.2049182,97595.0,97594.0,0.002]
[1738896760065,0.2049182,97595.0,97594.0,0.006]
[1738896761065,0.2049182,97595.0,97594.0,0.008]
[1738896761877,0.2049182,97595.0,97594.0,0.002]
[1738896762073,0.2049182,97595.0,97594.0,0.008]
[1738896762467,0.2049182,97595.0,97594.0,0.002]
[1738896762667,0.2049182,97595.0,97594.0,0.008]
[1738896763371,0.20505493,97604.0,97594.0,0.2129185]
[1738896763575,0.00015363,97604.0,97594.0,0.008]
[1738896763773,0.00015363,97604.0,97599.0,0.2049091]
[1738896764076,0.00015363,97604.0,97600.0,0.2049059]
[1738896765173,0.02255363,97607.0,97600.0,0.2049059]
[1738896765373,0.02255363,97607.0,97600.0,0.2089059]
[1738896767678,0.02255363,97607.0,97600.0,0.004]
[1738896767877,0.2049038,97602.0,97600.0,0.004]
[1738896770185,0.02255363,97607.0,97600.0,0.004]
[1738896770981,0.15324585,97605.0,97600.0,0.004]
[1738896772183,0.15324585,97605.0,97603.0,0.2048996]
[1738896773681,0.15324585,97609.0,97603.0,0.2048996]
[1738896773881,0.15324585,97609.0,97608.0,0.2048909]
[1738896775183,0.15324585,97609.0,97608.0,0.2058909]
[1738896775389,0.15324585,97609.0,97608.0,0.001]
[1738896776878,0.00015363,97613.0,97608.0,0.001]
[1738896777780,0.2048888,97609.0,97608.0,0.001]
[1738896778080,0.00015363,97613.0,97601.0,0.3608]
[1738896778279,0.2049009,97604.0,97601.0,0.3608]
[1738896780480,0.0441,97608.0,97601.0,0.3648]
[1738896780988,0.204893,97607.0,97601.0,0.3648]
[1738896781573,0.2049025,97603.0,97601.0,0.3648]
[1738896783891,0.2049025,97603.0,97601.0,0.004]
[1738896784075,0.0869,97602.0,97601.0,0.004]
[1738896785794,0.0456,97602.0,97601.0,0.004]
[1738896787389,0.2479744,97616.0,97601.0,0.004]
[1738896787582,0.0449,97615.0,97601.0,0.004]
[1738896787976,0.15324585,97604.0,97602.0,0.2049035]
[1738896790190,0.15324585,97604.0,97602.0,0.2079035]
[1738896790394,0.15324585,97604.0,97602.0,0.004]
[1738896791095,0.15324585,97607.0,97602.0,0.004]
[1738896792079,0.15324585,97607.0,97602.0,0.003]
[1738896792283,0.15324585,97607.0,97602.0,0.004]
[1738896792485,0.2048993,97604.0,97602.0,0.004]
[1738896792789,0.2049333,97588.0,97583.0,0.00153675]
[1738896793190,0.044,97587.0,97583.0,0.00153675]
[1738896793894,0.044,97587.0,97585.0,0.00915363]
[1738896794487,0.0883,97597.0,97585.0,0.00915363]
[1738896794690,0.15324585,97603.0,97592.0,0.2049224]
[1738896795081,0.15324585,97603.0,97588.0,0.3608]
[1738896795281,0.2049249,97592.0,97588.0,0.3608]
[1738896795691,0.3608,97599.0,97588.0,0.3608]
[1738896796690,0.3608,97599.0,97588.0,0.3648]
[1738896797189,0.3608,97599.0,97588.0,0.3618]
[1738896797587,0.204912,97598.0,97588.0,0.3618]
[1738896797788,0.204912,97598.0,97588.0,0.3608]
[1738896798396,0.15324585,97597.0,97588.0,0.3608]
[1738896799994,0.204929,97590.0,97588.0,0.3608]
[1738896801295,0.0429,97589.0,97588.0,0.3608]
[1738896801804,0.2049371,97586.0,97585.0,0.00015363]
[1738896802994,0.5657371,97586.0,97585.0,0.00015363]
[1738896803194,0.5657371,97586.0,97585.0,0.00115363]
[1738896804503,0.5667371,97586.0,97585.0,0.00115363]
[1738896806199,0.61657672,97586.0,97585.0,0.00015363]
[1738896806405,0.61857672,97586.0,97585.0,0.00015363]
[1738896807796,0.62896728,97586.0,97585.0,0.00015363]
[1738896808204,0.2049413,97584.0,97583.0,0.00153675]
[1738896809508,0.2069413,97584.0,97583.0,0.00153675]
[1738896810807,0.2079413,97584.0,97583.0,0.00153675]
[1738896814908,0.2049602,97575.0,97574.0,0.00015371]
[1738896815113,0.2049819,97565.0,97554.0,0.205004]
[1738896816616,0.3608,97567.0,97554.0,0.009]
[1738896816908,0.0422,97564.0,97554.0,0.009]
[1738896817108,0.0422,97564.0,97555.0,0.2050009]
[1738896818615,0.0422,97564.0,97555.0,0.2080009]
[1738896819116,0.0422,97564.0,97555.0,0.2160009]
[1738896821013,0.05222706,97564.0,97555.0,0.2160009]
[1738896823217,0.3608,97567.0,97555.0,0.011]
[1738896823415,0.3608,97567.0,97565.0,0.2049794]
[1738896823613,0.3608,97567.0,97556.0,0.2049981]
[1738896823807,0.2049865,97563.0,97556.0,0.2049981]
[1738896824011,0.2049865,97563.0,97555.0,0.011]
[1738896824712,0.2049865,97563.0,97556.0,0.008]
[1738896825219,0.3608,97567.0,97555.0,0.003]
[1738896825513,0.3608,97567.0,97555.0,0.011]
[1738896825708,0.3608,97567.0,97560.0,0.2049901]
[1738896825911,0.00015371,97569.0,97560.0,0.2049901]
[1738896828013,0.00015371,97569.0,97560.0,0.2119901]
[1738896828216,0.00015371,97569.0,97560.0,0.2139901]
[1738896830521,0.20512821,97569.0,97560.0,0.2139901]
[1738896830820,0.2049826,97565.0,97560.0,0.009]
[1738896831521,0.5657896,97561.0,97560.0,0.009]
[1738896831916,0.5657896,97561.0,97560.0,0.007]
[1738896832218,0.5657896,97561.0,97560.0,0.009]
[1738896832815,0.5657896,97561.0,97560.0,0.002]
[1738896833019,0.5657896,97561.0,97560.0,0.009]
[1738896833722,0.5657896,97561.0,97560.0,0.007]
[1738896833922,0.5657896,97561.0,97560.0,0.009]
[1738896834624,0.5677896,97561.0,97560.0,0.007]
[1738896834827,0.2050106,97551.0,97550.0,0.00015371]
[1738896836111,0.0844,97560.0,97550.0,0.00015371]
[1738896836315,0.2049975,97558.0,97550.0,0.00015371]
[1738896836621,0.2050035,97555.0,97550.0,0.00015371]
[1738896838817,0.2070035,97555.0,97550.0,0.00015371]
[1738896840228,0.05037011,97561.0,97554.0,0.3608]
[1738896840419,0.18388965,97568.0,97567.0,0.204977]
[1738896840615,0.0015377,97585.0,97584.0,0.2049413]
[1738896840924,0.0015377,97585.0,97584.0,0.5657413]
[1738896841325,0.00209771,97585.0,97584.0,0.5657413]
[1738896841519,0.0015377,97585.0,97584.0,0.5657413]
[1738896842531,0.0045377,97585.0,97584.0,0.5657413]
[1738896843426,0.0055377,97585.0,97584.0,0.5657413]
[1738896845523,0.0055377,97585.0,97584.0,0.57601616]
[1738896846632,0.0045377,97585.0,97584.0,0.57601616]
[1738896848232,0.0025377,97585.0,97584.0,0.57601616]
[1738896848428,0.0055377,97585.0,97584.0,0.57601616]
[1738896869347,0.0055377,97585.0,97584.0,0.5657413]
[1738896869547,0.0055377,97585.0,97584.0,0.3608]
[1738896870052,0.0055377,97585.0,97575.0,0.12123016]
[1738896870250,0.2049434,97583.0,97575.0,0.12123016]
[1738896870740,0.2049434,97583.0,97575.0,0.13153902]
[1738896871140,0.2049434,97583.0,97577.0,0.3608]
[1738896872744,0.3608,97582.0,97575.0,0.00015371]
[1738896872950,0.2049581,97576.0,97575.0,0.00015371]
[1738896873955,0.2049581,97576.0,97575.0,0.18388052]
[1738896877946,0.2059581,97576.0,97575.0,0.18388052]
[1738896878351,0.2089581,97576.0,97575.0,0.18388052]
[1738896878653,0.2089581,97576.0,97575.0,0.00015371]
[1738896878654,0.2079581,97576.0,97575.0,0.00015371]
[1738896878851,0.2109581,97576.0,97575.0,0.00015371]
[1738896880353,0.2049844,97564.0,97556.0,0.54452681]
[1738896880547,0.044,97563.0,97556.0,0.54576681]
[1738896880952,0.044,97563.0,97557.0,0.01041457]
[1738896881753,0.045,97563.0,97557.0,0.01041457]
[1738896882253,0.045,97563.0,97560.0,0.2049916]
[1738896882450,0.045,97563.0,97557.0,0.01041457]
[1738896884657,0.045,97563.0,97557.0,0.21541237]
[1738896895682,0.045,97563.0,97557.0,0.01041457]
[1738896897080,0.045,97563.0,97557.0,0.37121457]
[1738896897284,0.045,97563.0,97557.0,0.37241457]
[1738896898174,0.045,97563.0,97557.0,0.01161457]
[1738896898370,0.045,97563.0,97557.0,0.37121457]
[1738896898572,0.045,97563.0,97557.0,0.37241457]
[1738896903886,0.001,97563.0,97557.0,0.37241457]
[1738896905089,0.001,97563.0,97560.0,0.2049915]
[1738896905887,0.001,97563.0,97561.0,0.2049878]
[1738896906083,0.001,97563.0,97562.0,0.04453745]
[1738896910394,0.05084108,97563.0,97562.0,0.04453745]
[1738896914694,0.05084108,97563.0,97562.0,0.40533745]
[1738896917592,0.001,97563.0,97562.0,0.40533745]
[1738896917985,0.001,97563.0,97562.0,0.36233745]
[1738896918185,0.001,97563.0,97562.0,0.00153745]
[1738896918786,0.671,97563.0,97562.0,0.00153745]
[1738896919195,0.001,97563.0,97562.0,0.00153745]
[1738896923393,0.01140297,97563.0,97562.0,0.00153745]
[1738896924097,0.2050043,97554.0,97553.0,0.00015371]
[1738896924288,0.205019,97547.0,97540.0,0.24514485]
[1738896924495,0.2050317,97541.0,97540.0,0.24514485]
[1738896926003,0.0449,97546.0,97540.0,0.24714485]
[1738896926194,0.20516821,97550.0,97540.0,0.24714485]
[1738896926391,0.21534802,97550.0,97540.0,0.24714485]
[1738896927506,0.21534802,97550.0,97540.0,0.25114485]
[1738896927701,0.2050167,97549.0,97540.0,0.25114485]
[1738896927900,0.2050204,97547.0,97540.0,0.25014485]
[1738896928101,0.2050204,97547.0,97540.0,0.005]
[1738896928302,0.15352565,97543.0,97540.0,0.005]
[1738896929308,0.15352565,97543.0,97542.0,0.2050296]
[1738896930605,0.15352565,97543.0,97542.0,0.2080296]
[1738896931302,0.15352565,97543.0,97542.0,0.2090296]
[1738896932303,0.00015371,97550.0,97544.0,0.2050239]
[1738896932508,0.00015371,97550.0,97548.0,0.3608]
[1738896933601,0.00015371,97550.0,97548.0,0.3618]
[1738896934296,0.00015371,97550.0,97548.0,0.5668155]
[1738896936405,0.15352565,97553.0,97552.0,0.2050085]
[1738896936608,0.15352565,97553.0,97552.0,0.5658085]
[1738896937614,0.15452565,97553.0,97552.0,0.5658085]
[1738896938400,0.15452565,97553.0,97552.0,0.3608]
[1738896938602,0.15552565,97553.0,97552.0,0.3608]
[1738896938801,0.002,97553.0,97552.0,0.3608]
[1738896939008,0.002,97553.0,97548.0,0.3608]
[1738896939410,0.001,97553.0,97548.0,0.3608]
[1738896939607,0.001,97553.0,97552.0,0.002]
[1738896940611,0.00015371,97562.0,97552.0,0.002]
[1738896940810,0.00015371,97562.0,97552.0,0.08445932]
[1738896941118,0.00015371,97562.0,97552.0,0.08245932]
[1738896941322,0.00015371,97562.0,97552.0,0.08145932]
[1738896941519,0.00015371,97562.0,97556.0,0.3608]
[1738896941812,0.00015371,97562.0,97559.0,0.2049922]
[1738896947616,0.15367936,97562.0,97559.0,0.21519241]
[1738896948016,0.15367936,97562.0,97559.0,0.01020021]
[1738896948220,0.15367936,97562.0,97556.0,0.3608]
[1738896950628,0.15352565,97558.0,97556.0,0.3608]
[1738896951011,0.15352565,97558.0,97556.0,0.3618]
[1738896951612,0.15352565,97558.0,97556.0,0.37220296]
[1738896952015,0.15352565,97558.0,97556.0,0.57620306]
[1738896952220,0.15352565,97558.0,97556.0,0.57720306]
[1738896952720,0.15352565,97558.0,97557.0,0.0439]
[1738896954318,0.15352565,97558.0,97557.0,0.09278]
[1738896955017,0.00015371,97562.0,97557.0,0.09278]
[1738896955210,0.00015371,97562.0,97560.0,0.3608]
[1738896956019,0.00015371,97562.0,97561.0,0.2049896]
[1738896957416,0.00115371,97562.0,97561.0,0.2049896]
[1738896957818,0.00215371,97562.0,97561.0,0.2049896]
[1738896958218,0.00215371,97562.0,97560.0,0.3608]
[1738896958424,0.20714201,97562.0,97560.0,0.3608]
[1738896958921,0.20714201,97562.0,97553.0,0.3608]
[1738896958922,0.2049993,97557.0,97553.0,0.3608]
[1738896959127,0.2049993,97557.0,97553.0,0.37088568]
[1738896960523,0.2049993,97557.0,97553.0,0.37288568]
[1738896961027,0.2049993,97557.0,97553.0,0.37088568]
[1738896961223,0.2049993,97557.0,97553.0,0.37188568]
[1738896963334,0.205002,97556.0,97553.0,0.3618]
[1738896966036,0.15352565,97558.0,97553.0,0.3618]
[1738896966341,0.2050043,97554.0,97553.0,0.3618]
[1738896968733,0.15352565,97558.0,97553.0,0.3618]
[1738896969843,0.04984602,97554.0,97553.0,0.3618]
[1738896970443,0.04984602,97554.0,97553.0,0.3608]
[1738896970645,0.04984602,97554.0,97553.0,0.3618]
[1738896972941,0.04984602,97559.0,97553.0,0.3618]
[1738896976841,0.20551281,97560.0,97553.0,0.3618]
[1738896977146,0.2049928,97560.0,97553.0,0.3618]
[1738896977938,0.2049928,97560.0,97553.0,0.001]
[1738896978138,0.2049928,97560.0,97555.0,0.3608]
[1738896980545,0.2049928,97560.0,97555.0,0.3618]
[1738896980745,0.35864474,97560.0,97555.0,0.3618]
[1738896982043,0.15365194,97560.0,97558.0,0.2049945]
[1738896984046,0.2050001,97556.0,97555.0,0.3608]
[1738896984439,0.15365194,97560.0,97555.0,0.3608]
[1738896984835,0.15365194,97560.0,97559.0,0.2049938]
[1738896985845,0.04984466,97561.0,97559.0,0.2049938]
[1738896986043,0.001,97560.0,97559.0,0.2049938]
[1738896986649,0.002,97560.0,97559.0,0.2049938]
[1738896988458,0.001,97560.0,97559.0,0.2049938]
[1738896989353,0.002,97560.0,97559.0,0.2049938]
[1738896998746,0.002,97560.0,97559.0,0.5657938]
[1738897001652,0.00015371,97562.0,97561.0,0.2049896]
[1738897001846,0.1536233,97571.0,97570.0,0.2049707]
[1738897002060,0.0844,97584.0,97570.0,0.2049707]
[1738897002061,0.0844,97584.0,97577.0,0.204956]
[1738897004257,0.00753768,97578.0,97577.0,0.205956]
[1738897004657,0.01053768,97578.0,97577.0,0.001]
[1738897006549,0.24465682,97578.0,97577.0,0.001]
[1738897009857,0.0603731,97578.0,97577.0,0.001]
[1738897015266,0.0603731,97578.0,97559.0,0.2049935]
[1738897015460,0.2049735,97569.0,97559.0,0.2049935]
[1738897015662,0.1281,97568.0,97559.0,0.2049935]
[1738897016969,0.1281,97568.0,97567.0,0.3608]
[1738897018069,0.1321,97568.0,97567.0,0.3608]
[1738897019173,0.1331,97568.0,97567.0,0.3608]
[1738897021376,0.18293542,97568.0,97567.0,0.3608]
[1738897024080,0.18293542,97568.0,97566.0,0.2049779]
[1738897024277,0.18293542,97568.0,97567.0,0.3608]
[1738897025076,0.31054414,97568.0,97567.0,0.3608]
[1738897025974,0.31054414,97568.0,97567.0,0.14546249]
[1738897027270,0.18244414,97568.0,97567.0,0.14546249]
[1738897030273,0.18244414,97568.0,97547.0,0.3608]
[1738897030468,0.18244414,97568.0,97550.0,0.12107644]
[1738897030875,0.67,97567.0,97550.0,0.12107644]
[1738897031079,0.18244414,97568.0,97550.0,0.12107644]
[1738897031282,0.2049834,97564.0,97557.0,0.2049964]
[1738897032182,0.005,97568.0,97567.0,0.204977]
[1738897032486,0.004,97568.0,97567.0,0.204977]
[1738897032984,0.15364024,97572.0,97567.0,0.204977]
[1738897033375,0.001,97568.0,97567.0,0.204977]
[1738897033683,0.005,97568.0,97567.0,0.204977]
[1738897033983,0.001,97568.0,97567.0,0.204977]
[1738897034684,0.005,97568.0,97567.0,0.204977]
[1738897034884,0.004,97568.0,97567.0,0.204977]
[1738897035779,0.005,97568.0,97567.0,0.204977]
[1738897036685,0.05483763,97568.0,97567.0,0.204977]
[1738897038589,0.05483763,97568.0,97567.0,0.21517703]
[1738897042792,0.18437772,97574.0,97573.0,0.2049644]
[1738897042993,0.18437772,97574.0,97573.0,0.2536444]
[1738897043889,0.15362647,97574.0,97573.0,0.2536444]
[1738897044286,0.15462647,97574.0,97573.0,0.2536444]
[1738897045982,0.15462647,97574.0,97573.0,0.26410732]
[1738897046895,0.15462647,97574.0,97573.0,0.01046292]
[1738897047195,0.15462647,97574.0,97571.0,0.3608]
[1738897047196,0.001,97574.0,97571.0,0.3608]
[1738897049991,0.0877,97577.0,97571.0,0.37117632]
[1738897052697,0.0877,97577.0,97571.0,0.57614342]
[1738897055395,0.0877,97577.0,97571.0,0.21534342]
[1738897055595,0.0877,97577.0,97561.0,0.18340735]
[1738897055901,0.2049649,97573.0,97568.0,0.2049742]
[1738897056400,0.3608,97569.0,97561.0,0.18340735]
[1738897056698,0.2049875,97562.0,97560.0,0.18340735]
[1738897056894,0.0871,97561.0,97560.0,0.18340735]
[1738897057101,0.00153768,97578.0,97560.0,0.54420735]
[1738897057292,0.00153768,97578.0,97577.0,0.204956]
[1738897059796,0.00353768,97578.0,97577.0,0.204956]
[1738897060106,0.002,97578.0,97577.0,0.204956]
[1738897061305,0.15362647,97582.0,97581.0,0.2049476]
[1738897062702,0.15462647,97582.0,97581.0,0.2049476]
[1738897063011,0.002,97582.0,97581.0,0.2049476]
[1738897064200,0.0448,97586.0,97585.0,0.2049392]
[1738897064399,0.00015371,97587.0,97585.0,0.5657392]
[1738897065507,0.00315371,97587.0,97585.0,0.5657392]
[1738897066104,0.001,97586.0,97585.0,0.5657392]
[1738897066812,0.00415371,97587.0,97585.0,0.5657392]
[1738897067607,0.001,97586.0,97585.0,0.5657392]
[1738897068616,0.002,97586.0,97585.0,0.5657392]
[1738897069316,0.001,97586.0,97585.0,0.5657392]
[1738897070109,0.002,97586.0,97585.0,0.5657392]
[1738897071317,0.002,97586.0,97585.0,0.57589274]
[1738897075514,0.0518243,97586.0,97585.0,0.57589274]
[1738897078322,0.002,97586.0,97585.0,0.57589274]
[1738897091022,0.002,97586.0,97585.0,0.5657392]
[1738897092115,0.23620311,97586.0,97585.0,0.5657392]
[1738897095227,0.17862018,97586.0,97585.0,0.5657392]
[1738897095725,0.17862018,97586.0,97585.0,0.2049392]
[1738897096121,0.20932018,97586.0,97585.0,0.2049392]
[1738897096622,0.20932018,97586.0,97581.0,0.3608]
[1738897097617,0.21937116,97586.0,97581.0,0.3608]
[1738897097821,0.04275098,97586.0,97581.0,0.3608]
[1738897098330,0.04275098,97586.0,97578.0,0.2049538]
[1738897098525,0.04275098,97586.0,97580.0,0.2049496]
[1738897098726,0.04175098,97586.0,97580.0,0.2049496]
[1738897098931,0.04275098,97586.0,97580.0,0.2049496]
[1738897099233,0.04275098,97586.0,97584.0,0.2049396]
[1738897099433,0.04175098,97586.0,97584.0,0.2049396]
[1738897100430,0.04075098,97586.0,97584.0,0.2049396]
[1738897100630,0.04275098,97586.0,97584.0,0.2049396]
[1738897100930,0.04375098,97586.0,97584.0,0.2049396]
[1738897101831,0.0337,97586.0,97584.0,0.2049396]
[1738897108620,0.0337,97586.0,97571.0,0.18340735]
[1738897108825,0.0337,97586.0,97575.0,0.2049591]
[1738897108826,0.2049434,97583.0,97575.0,0.2049591]
[1738897109032,0.061,97582.0,97575.0,0.2049591]
[1738897110135,0.061,97582.0,97575.0,0.2059591]
[1738897111538,0.2049581,97576.0,97575.0,0.001]
[1738897112124,0.2049581,97576.0,97572.0,0.00015371]
[1738897112328,0.2049581,97576.0,97575.0,0.001]
[1738897112729,0.2049581,97576.0,97572.0,0.00015371]
[1738897112925,0.2049581,97576.0,97575.0,0.001]
[1738897115643,0.38258018,97576.0,97575.0,0.001]
[1738897117741,0.38258018,97576.0,97575.0,0.00018919]
[1738897119236,0.41063712,97576.0,97572.0,0.00015371]
[1738897119438,0.2049644,97573.0,97572.0,0.00015371]
[1738897119738,0.2049737,97569.0,97558.0,0.2049951]
[1738897119935,0.3608,97564.0,97557.0,0.00153741]
[1738897120134,0.03,97563.0,97560.0,0.2049898]
[1738897120335,0.03,97563.0,97561.0,0.2049883]
[1738897122847,0.03,97563.0,97561.0,0.2109883]
[1738897123047,0.03,97563.0,97561.0,0.2129883]
[1738897124143,0.0301,97562.0,97561.0,0.2129883]
[1738897125546,0.0301,97562.0,97561.0,0.2069883]
[1738897125746,0.0301,97562.0,97561.0,0.2099883]
[1738897126046,0.0301,97562.0,97561.0,0.2079883]
[1738897126353,0.03,97563.0,97561.0,0.2089883]
[1738897126646,0.0631,97579.0,97567.0,0.2049753]
[1738897127547,0.15340042,97576.0,97561.0,0.004]
[1738897127747,0.15340042,97576.0,97568.0,0.2049736]
[1738897129547,0.3712079,97575.0,97568.0,0.2049736]
[1738897129743,0.3712079,97575.0,97568.0,0.2059736]
[1738897130046,0.3712079,97575.0,97568.0,0.004]
[1738897130247,0.3712079,97575.0,97573.0,0.2049628]
[1738897132453,0.3712079,97575.0,97573.0,0.2059628]
[1738897134050,0.0104079,97575.0,97573.0,0.2059628]
[1738897134355,0.15340042,97577.0,97573.0,0.2059628]
[1738897135556,0.3608,97575.0,97573.0,0.2059628]
[1738897135950,0.3608,97575.0,97573.0,0.2049628]
[1738897136151,0.3608,97575.0,97573.0,0.2059628]
[1738897140059,0.17879009,97574.0,97573.0,0.2059628]
[1738897141755,0.17879009,97574.0,97573.0,0.2049628]
[1738897141948,0.17879009,97574.0,97573.0,0.2059628]
[1738897142851,0.17879009,97574.0,97573.0,0.2049628]
[1738897143055,0.17879009,97574.0,97573.0,0.2059628]
[1738897143558,0.04983893,97574.0,97573.0,0.2059628]
[1738897146060,0.04983893,97574.0,97573.0,0.2049628]
[1738897146257,0.04983893,97574.0,97573.0,0.2059628]
[1738897149958,0.0638,97580.0,97575.0,0.2049597]
[1738897151869,0.0638,97580.0,97575.0,0.2059597]
[1738897152259,0.0638,97580.0,97579.0,0.2049518]
[1738897153560,0.0648,97580.0,97579.0,0.2049518]
[1738897153760,0.001,97580.0,97579.0,0.2049518]
[1738897153964,0.001,97580.0,97579.0,0.5657518]
[1738897155071,0.21386745,97585.0,97584.0,0.2049412]
[1738897156163,0.21686745,97585.0,97584.0,0.2049412]
[1738897157475,0.003,97585.0,97584.0,0.2049412]
[1738897157764,0.004,97585.0,97584.0,0.2049412]
[1738897161665,0.004,97585.0,97584.0,0.5657412]
[1738897179980,0.0015374,97602.0,97584.0,0.4092]
[1738897180182,0.0015374,97602.0,97601.0,0.2049056]
[1738897180385,0.15340459,97605.0,97604.0,0.2048993]
[1738897182582,0.15340459,97605.0,97604.0,0.2068993]
[1738897183584,0.15340459,97605.0,97604.0,0.2078993]
[1738897183791,0.0662,97609.0,97608.0,0.2048909]
[1738897183792,0.21960459,97609.0,97608.0,0.2048909]
[1738897184095,0.00015371,97614.0,97604.0,0.003]
[1738897184280,0.00015371,97614.0,97613.0,0.5656804]
[1738897187577,0.0642,97625.0,97613.0,0.3608]
[1738897187782,0.0642,97625.0,97624.0,0.2048573]
[1738897190283,0.0662,97625.0,97624.0,0.2048573]